bitfinex/quotes_ETHUSD_20210701
["timestamp","ask_amount","ask_price","bid_price","bid_amount"]
[1625164244748,0.00879795,2118.6,2117.4,5.01]
[1625164244946,0.00879795,2118.6,2116.7,31.24950816]
[1625164244947,0.00879795,2118.6,2116.7,36.25950816]
[1625164245048,1.38039795,2118.6,2116.7,44.25950816]
[1625164245198,0.31055724,2118.5,2116.7,44.25950816]
[1625164245351,0.31055724,2118.5,2116.8,0.12]
[1625164245749,0.31055724,2118.5,2116.8,2.4440996]
[1625164245849,0.31055724,2118.5,2116.8,4.63597441]
[1625164245950,0.31055724,2118.5,2117.1,7.08093]
[1625164246055,8.69280337,2118.6,2117.1,12.09093]
[1625164246254,7.08944795,2118.6,2117.1,12.09093]
[1625164246543,7.08944795,2118.6,2117.2,0.04]
[1625164246944,7.08944795,2118.6,2117.1,12.09093]
[1625164246945,0.00879795,2118.6,2117.1,12.09093]
[1625164247042,5.25419795,2118.6,2117.1,12.09093]
[1625164247143,5.49279243,2118.6,2117.1,12.09093]
[1625164247243,5.25419795,2118.6,2117.1,12.09093]
[1625164247651,5.25419795,2118.6,2117.1,5.01]
[1625164247846,7.08103,2118.5,2116.9,15.6668]
[1625164248606,3.54067,2118.4,2116.9,15.6668]
[1625164248804,3.54067,2118.4,2116.9,23.6668]
[1625164248905,3.54067,2118.4,2116.9,25.9908996]
[1625164249007,3.54067,2118.4,2117.5,7.08005]
[1625164249253,3.54067,2118.4,2117.5,12.09005]
[1625164249355,3.54067,2118.4,2117.5,7.08005]
[1625164249454,3.54067,2118.4,2117.5,12.09005]
[1625164251245,3.54067,2118.4,2117.5,7.08005]
[1625164251345,10.62158,2118.4,2117.3,7.08091]
[1625164251447,15.17278,2118.4,2117.3,7.08091]
[1625164252698,15.17278,2118.4,2117.3,12.09091]
[1625164252997,8.09187,2118.4,2117.3,12.09091]
[1625164253200,3.54067,2118.4,2117.3,12.09091]
[1625164254553,0.00608257,2118.3,2117.3,12.09091]
[1625164257401,7.08716257,2118.3,2117.3,12.09091]
[1625164258099,0.00608257,2118.3,2117.3,12.09091]
[1625164261828,7.08716257,2118.3,2117.3,12.09091]
[1625164265137,10.62770257,2118.3,2117.3,12.09091]
[1625164265438,3.54662257,2118.3,2117.3,12.09091]
[1625164265641,3.54057,2118.2,2117.3,12.09091]
[1625164267422,10.62164,2118.2,2117.3,12.09091]
[1625164269370,3.54057,2118.2,2117.3,12.09091]
[1625164270422,7.08138,2118.1,2117.3,12.09091]
[1625164272027,3.5413,2117.9,2116.9,15.17277441]
[1625164272177,3.5413,2117.9,2116.4,22.54538]
[1625164272178,20.0,2117.7,2116.4,22.39538]
[1625164272273,0.26068106,2117.6,2116.4,11.80288]
[1625164272571,7.08482,2117.2,2116.3,7.08509]
[1625164272671,4.4873,2117.2,2116.3,7.08509]
[1625164272772,4.4873,2117.2,2116.0,11.80381]
[1625164272873,4.72779831,2117.2,2115.8,10.2402]
[1625164273023,4.4873,2117.2,2115.7,10.3182]
[1625164273173,0.2457392,2117.5,2116.4,8.1542275]
[1625164273174,0.23882314,2117.5,2116.4,8.1542275]
[1625164273304,2.0,2117.7,2116.4,8.1542275]
[1625164273389,44.4312,2118.2,2116.5,0.2]
[1625164273491,0.27006235,2118.1,2116.5,0.2]
[1625164273688,0.27006235,2118.1,2116.8,33.65528521]
[1625164273793,7.08109,2118.0,2117.2,7.08102]
[1625164274088,14.16259,2118.0,2117.2,7.08102]
[1625164274288,14.16259,2118.0,2117.2,12.09102]
[1625164274388,14.16259,2118.0,2117.2,7.08102]
[1625164274490,14.16259,2118.0,2117.2,12.09102]
[1625164274722,14.16259,2118.0,2117.2,7.08102]
[1625164274818,14.16259,2118.0,2117.2,12.09102]
[1625164275019,7.0815,2118.0,2117.2,5.01]
[1625164275219,7.0815,2118.0,2117.1,14.45139]
[1625164276057,10.58203,2117.8,2117.1,14.45139]
[1625164276156,10.58203,2117.8,2117.1,5.01]
[1625164276308,10.58203,2117.8,2116.8,14.45193]
[1625164276458,18.51753,2117.8,2116.8,14.45193]
[1625164276557,11.4355,2117.8,2116.8,14.45193]
[1625164277410,11.4355,2117.8,2116.8,5.01]
[1625164277411,7.08291,2117.5,2116.8,5.01]
[1625164277511,10.62433,2117.5,2116.7,14.45302]
[1625164277711,3.54142,2117.5,2116.7,14.45302]
[1625164278062,4.50362,2117.5,2116.7,9.44302]
[1625164278269,0.9622,2117.5,2116.5,17.9709453]
[1625164278416,0.9622,2117.5,2116.4,9.44266]
[1625164278514,0.9622,2117.5,2116.3,10.0898]
[1625164278716,3.54233,2117.1,2116.3,10.0898]
[1625164278817,4.5448,2117.1,2116.3,10.0898]
[1625164279064,4.5448,2117.1,2116.1,10.6903]
[1625164279366,4.5448,2117.1,2115.9,3.916935]
[1625164279469,3.54279,2116.6,2115.9,3.916935]
[1625164279614,7.40729,2116.6,2115.9,3.916935]
[1625164279821,3.8645,2116.6,2115.9,8.926935]
[1625164279916,1.06874876,2116.6,2115.9,11.001855]
[1625164280064,1.06874876,2116.6,2116.0,0.12]
[1625164280316,1.06874876,2116.6,2115.9,6.40759997]
[1625164280617,1.06874876,2116.6,2115.9,2.49066497]
[1625164281064,1.06874876,2116.6,2116.1,7.085]
[1625164281166,4.61153876,2116.6,2116.1,7.085]
[1625164281265,4.61153876,2116.6,2116.1,12.095]
[1625164281666,4.61153876,2116.6,2116.1,5.01]
[1625164281768,4.61153876,2116.6,2115.8,14.45652]
[1625164281966,4.61153876,2116.6,2115.8,9.44652]
[1625164282765,11.69764876,2116.6,2115.8,9.44652]
[1625164283069,4.61153876,2116.6,2115.8,9.44652]
[1625164283170,1.06874876,2116.6,2115.8,9.44652]
[1625164283268,1.06874876,2116.6,2115.8,14.32354034]
[1625164283368,9.44682,2117.1,2115.8,14.32354034]
[1625164283470,9.44682,2117.1,2115.9,0.1]
[1625164283717,9.44682,2117.1,2115.8,4.87702034]
[1625164283819,7.08511,2116.9,2116.2,7.08469]
[1625164283923,7.08511,2116.9,2116.2,7.03469]
[1625164284020,7.08511,2116.9,2116.2,12.04469]
[1625164284171,3.5424,2117.0,2116.2,7.03469]
[1625164284270,3.5424,2117.0,2116.2,12.04469]
[1625164284818,5.1774,2117.2,2116.2,5.01]
[1625164284918,12.26181,2117.2,2116.2,5.01]
[1625164285015,5.1774,2117.2,2115.8,9.88702034]
[1625164285116,5.1774,2117.2,2115.8,4.87702034]
[1625164285219,5.1774,2117.2,2115.8,17.88702034]
[1625164285668,8.71988,2117.2,2115.8,4.87702034]
[1625164285768,8.71988,2117.2,2115.6,11.0429]
[1625164285867,3.5424,2117.0,2115.6,48.7558016]
[1625164286274,7.08601,2116.8,2116.1,7.08564]
[1625164286372,10.62911,2116.8,2116.0,9.44625]
[1625164286472,3.5431,2116.8,2115.7,9.44735]
[1625164286572,0.14,2116.7,2115.7,9.44735]
[1625164286670,3.7085,2116.7,2115.7,9.44735]
[1625164286836,3.5685,2116.7,2115.7,9.44735]
[1625164287339,3.5685,2116.7,2115.5,8.02913373]
[1625164287340,7.08743,2116.4,2115.5,8.02913373]
[1625164287438,7.08743,2116.4,2115.2,14.58690814]
[1625164287541,7.08743,2116.4,2115.2,3.69720814]
[1625164287637,7.08743,2116.4,2115.1,11.80926]
[1625164288040,7.08743,2116.4,2115.1,11.05926]
[1625164288491,14.51262,2116.2,2115.3,7.08804]
[1625164288592,14.51262,2116.2,2115.0,27.7809825]
[1625164288593,7.42431,2116.2,2115.0,27.7809825]
[1625164288692,7.42431,2116.2,2115.0,10.5483]
[1625164289178,0.12,2116.1,2115.0,10.5483]
[1625164289326,8.72751,2116.2,2115.0,10.5483]
[1625164289767,8.67751,2116.2,2115.0,10.5483]
[1625164290065,8.67751,2116.2,2114.7,30.8641858]
[1625164290171,9.45264,2116.0,2114.7,30.8641858]
[1625164290319,5.26029,2115.9,2114.7,30.8641858]
[1625164290521,5.10029,2115.9,2114.7,30.8641858]
[1625164290866,5.10029,2115.9,2114.7,30.8141858]
[1625164291215,8.64535,2115.9,2114.7,30.8141858]
[1625164291571,8.64535,2115.9,2114.7,11.0108]
[1625164292521,7.09019,2115.6,2114.7,18.10064]
[1625164292870,7.09019,2115.6,2114.7,7.08984]
[1625164293172,7.08975,2115.9,2114.7,7.08984]
[1625164293273,3.54469,2115.9,2114.7,12.09984]
[1625164293377,11.01,2116.2,2114.8,0.14]
[1625164293474,7.08802,2116.4,2115.4,7.08775]
[1625164293643,7.08802,2116.4,2115.4,9.9252]
[1625164293742,7.08802,2116.4,2115.4,4.9152]
[1625164293853,7.08802,2116.4,2115.4,9.9252]
[1625164293945,5.42142436,2116.5,2115.4,4.9152]
[1625164294045,5.42142436,2116.5,2115.4,9.9252]
[1625164294342,3.7,2116.5,2115.4,9.9252]
[1625164294845,10.78737,2116.5,2115.6,7.08711]
[1625164295052,3.7,2116.5,2115.6,12.09711]
[1625164295202,3.7,2116.5,2115.6,7.08711]
[1625164295297,3.7,2116.5,2115.6,12.09711]
[1625164296713,3.7,2116.5,2115.6,12.04711]
[1625164298373,3.7,2116.5,2115.6,5.01]
[1625164298571,0.1,2116.4,2115.2,16.7194507]
[1625164298923,3.7,2116.5,2115.2,16.7194507]
[1625164299019,7.24385,2116.5,2115.2,16.7194507]
[1625164299424,7.08766,2116.3,2115.2,14.46034]
[1625164300918,3.54408,2116.2,2115.2,14.46034]
[1625164301015,7.08826,2116.1,2115.2,14.46034]
[1625164301114,11.84586,2116.1,2115.2,14.46034]
[1625164301216,9.0490999,2116.1,2115.2,14.46034]
[1625164303515,4.7576,2116.1,2115.2,14.46034]
[1625164304118,4.7576,2116.1,2115.2,5.01]
[1625164304368,4.7576,2116.1,2115.1,15.7765]
[1625164304877,4.7576,2116.1,2115.1,12.09854]
[1625164304878,11.84602,2116.1,2115.1,12.09854]
[1625164307182,4.7576,2116.1,2115.1,12.09854]
[1625164307282,3.54408,2116.2,2115.1,12.09854]
[1625164308383,7.08816,2116.1,2115.1,12.09854]
[1625164308485,7.08816,2116.1,2115.1,7.08854]
[1625164308587,16.24026,2116.1,2115.1,7.08854]
[1625164308684,16.24026,2116.1,2115.0,9.45059]
[1625164308884,0.12,2116.0,2115.0,9.45059]
[1625164309188,3.54481,2115.7,2115.0,9.45059]
[1625164310286,3.54481,2115.7,2115.0,14.46059]
[1625164310936,5.66561,2115.7,2115.0,14.46059]
[1625164311240,2.1208,2115.7,2115.1,3.5445527]
[1625164311438,2.1208,2115.7,2115.1,8.5545527]
[1625164312251,2.1208,2115.7,2115.3,7.08885]
[1625164312404,4.1421,2116.1,2115.3,10.632879]
[1625164312557,0.52737273,2116.3,2115.3,8.554029]
[1625164313154,4.53907273,2116.6,2115.3,8.554029]
[1625164313759,4.53907273,2116.6,2115.9,7.08777]
[1625164314142,0.08,2116.4,2115.9,7.08777]
[1625164314342,4.53907273,2116.6,2115.9,7.08777]
[1625164314542,24.53907273,2116.6,2115.9,7.08777]
[1625164314644,4.22737273,2116.5,2115.9,7.08777]
[1625164315744,3.7,2116.5,2115.9,7.08777]
[1625164316133,0.12,2116.4,2115.9,7.08777]
[1625164316334,3.7,2116.5,2115.9,7.08777]
[1625164317290,3.7,2116.5,2115.9,15.6412293]
[1625164317443,3.7,2116.5,2115.9,8.5534593]
[1625164318193,3.7,2116.5,2116.2,7.08619]
[1625164318441,0.90380612,2116.5,2116.2,15.6388758]
[1625164318639,20.462,2117.2,2116.2,15.6388758]
[1625164318738,10.7296,2117.4,2116.2,15.6388758]
[1625164318889,10.7296,2117.4,2116.3,0.04]
[1625164318988,10.7296,2117.4,2116.2,15.6388758]
[1625164319090,10.7296,2117.4,2116.2,10.6288758]
[1625164319238,10.7296,2117.4,2116.2,15.6388758]
[1625164320066,10.7296,2117.4,2116.8,7.08516]
[1625164320219,20.0,2117.6,2116.8,7.08516]
[1625164320566,24.68998,2117.7,2116.8,7.08516]
[1625164320754,14.02848,2117.7,2116.8,7.08516]
[1625164321202,10.4859,2117.7,2116.8,7.08516]
[1625164321301,10.4859,2117.7,2116.8,12.09516]
[1625164321501,10.4859,2117.7,2116.8,7.08516]
[1625164321757,20.0,2117.6,2116.8,5.01]
[1625164321856,10.4859,2117.7,2116.5,14.456]
[1625164322006,10.4859,2117.7,2116.5,17.9980755]
[1625164322805,10.4859,2117.7,2116.6,0.06]
[1625164322971,10.4859,2117.7,2116.5,17.9980755]
[1625164324024,10.4859,2117.7,2117.1,7.08444]
[1625164324125,21.50327273,2118.2,2117.1,7.08444]
[1625164324228,21.50327273,2118.2,2117.1,12.09444]
[1625164324479,20.9759,2118.2,2117.1,12.09444]
[1625164324828,20.0,2118.0,2117.1,12.09444]
[1625164324924,20.9759,2118.2,2117.1,12.09444]
[1625164325258,0.04,2118.1,2117.1,12.09444]
[1625164325458,15.04,2118.1,2117.1,12.09444]
[1625164326112,0.04,2118.1,2117.1,12.09444]
[1625164326267,25.9859,2118.2,2117.1,5.01]
[1625164326466,25.9859,2118.2,2117.5,7.08275]
[1625164326566,20.0,2117.9,2117.4,9.44367]
[1625164326665,20.0,2117.9,2117.0,9.44591]
[1625164326820,43.6,2117.8,2117.0,9.44591]
[1625164326967,43.6,2117.8,2116.3,6.87642367]
[1625164326968,24.9036,2117.2,2116.3,6.87642367]
[1625164327120,20.0,2116.6,2115.6,10.7041]
[1625164327221,20.0,2116.6,2115.3,4.72316]
[1625164327320,23.781,2116.6,2115.5,3.5435724]
[1625164327540,0.25830062,2116.5,2115.7,11.80929]
[1625164327636,0.1,2116.5,2115.6,7.0887]
[1625164327784,0.25,2116.5,2115.6,7.0887]
[1625164328284,0.15,2116.5,2115.6,7.0887]
[1625164328684,0.67737273,2116.5,2115.6,7.0887]
[1625164328786,4.0,2116.4,2115.6,7.0887]
[1625164329086,9.01,2116.4,2115.6,7.0887]
[1625164331278,9.01,2116.4,2115.2,6.87]
[1625164331379,20.0,2116.2,2115.2,6.87]
[1625164331477,2.0,2116.1,2115.2,11.88]
[1625164331578,5.5144,2116.1,2115.2,11.88]
[1625164332925,2.0,2116.0,2115.2,6.87]
[1625164333129,20.0,2115.7,2115.2,6.87]
[1625164333229,20.0,2115.7,2114.4,10.9954]
[1625164333332,20.0,2115.7,2114.3,11.81564]
[1625164333333,33.01,2115.7,2114.3,11.81564]
[1625164333432,0.26810241,2115.6,2114.3,11.81564]
[1625164333526,3.76210241,2115.6,2114.3,11.81564]
[1625164333630,6.16507862,2115.6,2114.3,11.81564]
[1625164333727,11.17507862,2115.6,2114.3,11.81564]
[1625164333828,20.0,2115.3,2114.3,11.81564]
[1625164333929,20.0,2115.3,2114.2,10.8044]
[1625164334028,20.0,2115.2,2114.2,10.8044]
[1625164334128,20.0,2115.2,2114.0,6.87]
[1625164334276,25.01,2115.2,2114.0,6.87]
[1625164334617,5.01,2115.2,2114.0,6.87]
[1625164334877,1.1503,2115.3,2114.0,6.87]
[1625164335327,13.01,2115.4,2114.0,6.87]
[1625164335437,5.01,2115.4,2114.3,7.09192]
[1625164335534,20.15643851,2115.6,2114.3,15.23832]
[1625164335632,20.15643851,2115.6,2114.3,10.22832]
[1625164335737,20.15643851,2115.6,2114.3,15.23832]
[1625164336229,0.15643851,2115.6,2114.3,15.23832]
[1625164337787,0.00643851,2115.6,2114.3,15.23832]
[1625164338087,0.00643851,2115.6,2114.4,0.04]
[1625164338190,0.00643851,2115.6,2114.9,7.0897]
[1625164338290,0.52737273,2115.8,2114.9,7.0897]
[1625164338389,0.52737273,2115.8,2114.9,12.0997]
[1625164338715,0.15,2116.0,2114.9,12.0997]
[1625164338919,0.15,2116.0,2114.7,9.45293]
[1625164339018,3.797,2116.0,2114.7,9.45293]
[1625164339219,0.08,2115.9,2114.7,9.45293]
[1625164339468,7.09101,2115.7,2114.7,9.45293]
[1625164339717,7.24101,2115.7,2114.7,9.45293]
[1625164339867,12.25101,2115.7,2114.7,9.45293]
[1625164339969,7.24101,2115.7,2114.7,9.45293]
[1625164340117,12.25101,2115.7,2114.7,14.46293]
[1625164340216,7.24101,2115.7,2114.7,14.46293]
[1625164340315,12.25101,2115.7,2114.7,14.46293]
[1625164340519,7.24101,2115.7,2114.7,14.46293]
[1625164340993,12.25101,2115.7,2114.7,9.45293]
[1625164341140,12.25101,2115.7,2114.7,14.46293]
[1625164341238,12.25101,2115.7,2114.7,9.45293]
[1625164341438,12.25101,2115.7,2114.7,14.46293]
[1625164341694,12.25101,2115.7,2114.7,9.45293]
[1625164341790,12.25101,2115.7,2114.7,14.46293]
[1625164342391,15.67461,2115.7,2114.7,14.46293]
[1625164342595,15.67461,2115.7,2114.7,9.45293]
[1625164342690,35.67461,2115.7,2114.4,10.5582]
[1625164342794,0.06,2115.6,2114.4,15.5682]
[1625164342893,7.09129,2115.5,2114.5,7.09121]
[1625164343097,7.09129,2115.5,2114.5,12.10121]
[1625164344939,12.25075,2115.7,2114.5,12.10121]
[1625164346337,20.25075,2115.7,2114.5,12.10121]
[1625164346431,0.52737273,2115.6,2114.5,12.10121]
[1625164347431,12.25075,2115.7,2114.5,12.10121]
[1625164349129,7.24075,2115.7,2114.5,12.05121]
[1625164349530,12.25075,2115.7,2114.5,12.05121]
[1625164350705,20.0,2115.6,2114.5,12.05121]
[1625164350804,5.0288,2115.6,2114.5,12.05121]
[1625164351205,10.0388,2115.6,2114.5,12.05121]
[1625164351353,10.44604278,2115.6,2114.5,12.05121]
[1625164351606,10.44604278,2115.6,2114.5,7.04121]
[1625164351705,20.0,2115.5,2114.2,9.45541]
[1625164351805,28.0,2115.5,2114.2,9.45541]
[1625164351905,34.4227,2115.5,2114.2,9.45541]
[1625164352309,34.3027,2115.5,2114.2,9.45541]
[1625164352407,0.15,2115.4,2114.2,9.45541]
[1625164352911,0.15,2115.4,2114.2,14.46541]
[1625164353209,7.24155,2115.4,2114.2,14.46541]
[1625164353462,7.76879278,2115.4,2114.2,14.46541]
[1625164354110,12.77879278,2115.4,2114.2,14.46541]
[1625164354362,7.76879278,2115.4,2114.2,14.46541]
[1625164354460,7.24155,2115.4,2114.2,14.46541]
[1625164354702,7.24155,2115.4,2114.3,0.08]
[1625164355104,7.24155,2115.4,2114.2,14.46541]
[1625164355754,7.24155,2115.4,2114.2,13.46541]
[1625164355956,12.25155,2115.4,2114.2,13.46541]
[1625164356058,7.24155,2115.4,2114.2,13.46541]
[1625164356559,12.25155,2115.4,2114.2,13.46541]
[1625164357111,7.24155,2115.4,2114.2,13.46541]
[1625164357359,7.24155,2115.4,2114.3,0.08]
[1625164357713,15.24155,2115.4,2114.3,0.08]
[1625164357812,13.16,2115.4,2114.0,39.05423322]
[1625164357910,13.16,2115.4,2114.0,36.80067]
[1625164358168,13.16,2115.4,2114.0,33.2551]
[1625164358862,7.0922,2115.0,2114.4,9.45464]
[1625164358962,10.8622,2115.0,2114.4,9.45464]
[1625164359206,3.77,2115.0,2114.4,9.45464]
[1625164360060,0.97201006,2115.0,2114.4,9.45464]
[1625164362401,0.97201006,2115.0,2114.0,22.8425]
[1625164362498,0.97201006,2115.0,2114.3,5.01]
[1625164362602,0.97201006,2115.0,2114.0,22.8425]
[1625164363301,8.06417006,2115.0,2114.5,7.09184]
[1625164363402,0.97201006,2115.0,2114.5,7.09184]
[1625164365096,8.62367,2115.1,2114.5,12.10184]
[1625164365866,0.52724278,2115.4,2114.5,12.10184]
[1625164365870,0.52724278,2115.4,2114.5,16.20684]
[1625164365978,5.26667436,2116.0,2114.6,28.85]
[1625164366075,1.72142436,2116.0,2114.7,15.0]
[1625164366171,15.81803,2116.4,2114.7,15.20910295]
[1625164366274,4.0,2116.4,2114.8,3.69367]
[1625164366373,4.0,2116.4,2114.9,15.0]
[1625164366470,4.0,2116.4,2114.9,23.00808113]
[1625164366575,27.155,2116.7,2115.0,3.7726]
[1625164366674,20.976,2116.7,2115.1,15.0]
[1625164366825,20.976,2116.7,2115.8,7.08615]
[1625164366924,31.9997,2117.2,2115.8,11.90925]
[1625164367021,21.0118,2117.2,2115.8,16.91925]
[1625164367226,10.2881,2117.2,2115.8,16.92530183]
[1625164367327,31.8711,2117.5,2115.8,9.83915183]
[1625164367424,31.8711,2117.5,2115.9,0.06171362]
[1625164367574,31.8711,2117.5,2115.9,2.48653584]
[1625164367771,31.8711,2117.5,2115.9,2.42482222]
[1625164368341,31.8711,2117.5,2115.9,5.96695772]
[1625164368440,21.1195,2117.5,2116.6,7.08428]
[1625164368538,17.39926,2117.7,2116.6,9.3229]
[1625164369138,7.08416,2117.7,2116.6,9.3229]
[1625164369695,20.0,2117.5,2116.6,9.3229]
[1625164369794,20.0,2117.5,2116.5,1.2027]
[1625164369893,24.0838,2117.5,2116.0,31.66831418]
[1625164369995,24.0838,2117.5,2116.0,20.85961418]
[1625164370096,0.06,2117.4,2116.0,20.85961418]
[1625164370352,4.79236897,2117.4,2116.0,20.85961418]
[1625164370442,20.0,2117.2,2116.0,10.18971418]
[1625164370801,7.08656,2116.7,2116.0,0.00801418]
[1625164370899,12.11956,2116.7,2116.0,0.00801418]
[1625164371002,17.12956,2116.7,2116.0,0.00801418]
[1625164371299,0.04,2116.6,2116.0,0.00801418]
[1625164371548,20.0,2116.5,2116.0,0.00801418]
[1625164371802,33.01,2116.5,2116.0,0.00801418]
[1625164371899,7.0885,2116.3,2116.0,0.00801418]
[1625164372098,12.0985,2116.3,2116.0,0.00801418]
[1625164372248,24.3932,2116.1,2116.0,0.00801418]
[1625164372915,4.3932,2116.1,2116.0,0.00801418]
[1625164373316,9.4032,2116.1,2116.0,0.00801418]
[1625164373565,9.5232,2116.1,2116.0,0.00801418]
[1625164374166,29.5232,2116.1,2116.0,0.00801418]
[1625164374267,29.6732,2116.1,2116.0,0.00801418]
[1625164374567,29.6732,2116.1,2114.7,15.9885]
[1625164374721,20.0,2115.6,2114.7,5.01]
[1625164374874,32.4623,2115.6,2114.3,27.4798]
[1625164374961,38.7751,2115.6,2114.3,6.87]
[1625164375455,20.0,2115.4,2114.3,6.87]
[1625164375557,20.0,2115.3,2114.3,6.87]
[1625164375757,5.01,2115.3,2114.3,6.87]
[1625164375859,7.09244,2115.0,2114.3,6.87]
[1625164376011,10.91274,2115.0,2114.3,11.88]
[1625164376106,10.91274,2115.0,2114.3,6.87]
[1625164376206,10.91274,2115.0,2114.3,11.88]
[1625164376461,3.8203,2115.0,2114.3,11.88]
[1625164376557,3.8203,2115.0,2114.3,5.01]
[1625164376660,3.8203,2115.0,2114.4,0.1]
[1625164376857,3.8203,2115.0,2113.9,5.01]
[1625164376959,3.8203,2115.0,2113.8,85.49292541]
[1625164377088,3.8203,2115.0,2114.4,7.09078]
[1625164377387,3.8203,2115.0,2114.4,18.97078]
[1625164377536,3.8203,2115.0,2114.4,13.96078]
[1625164377640,3.8203,2115.0,2114.4,6.87]
[1625164378187,10.91271,2115.0,2114.4,6.87]
[1625164378539,3.8203,2115.0,2114.4,6.87]
[1625164380827,3.8203,2115.0,2114.1,14.46505]
[1625164380932,9.45527,2115.5,2114.1,14.46505]
[1625164381029,0.15,2115.7,2114.2,2.60482222]
[1625164381226,0.15,2115.7,2114.2,7.61482222]
[1625164381713,0.15,2115.7,2114.3,0.04]
[1625164382116,0.15,2115.7,2114.2,2.42482222]
[1625164382271,0.15,2115.7,2114.4,9.45432]
[1625164382272,7.09116,2115.5,2114.4,9.45432]
[1625164382465,20.10116,2115.5,2114.1,14.46505]
[1625164382563,12.10116,2115.5,2114.1,14.46505]
[1625164382864,7.09116,2115.5,2114.2,0.04]
[1625164383215,7.09116,2115.5,2114.1,14.46505]
[1625164383319,0.15,2115.7,2114.8,7.09136]
[1625164384761,0.15,2115.7,2114.8,12.10136]
[1625164385114,0.15,2115.7,2114.8,16.35576]
[1625164385366,28.0242,2116.0,2114.8,16.35576]
[1625164385613,15.0142,2116.0,2114.8,16.35576]
[1625164385865,22.0723,2116.2,2115.3,4.40142]
[1625164385963,11.0268,2116.2,2115.3,8.94302]
[1625164386108,11.0268,2116.2,2115.3,13.95302]
[1625164386210,1.72142436,2116.3,2115.3,13.95302]
[1625164386309,10.3664,2116.6,2115.3,13.95302]
[1625164386509,10.3664,2116.6,2115.9,7.08805]
[1625164386665,14.97136897,2116.7,2115.9,11.68245]
[1625164386811,6.179,2116.7,2115.9,11.68245]
[1625164386914,3.80942436,2117.1,2115.9,16.69245]
[1625164387113,1.72142436,2117.1,2116.0,3.54328]
[1625164387360,10.0235,2117.2,2116.0,8.55328]
[1625164387459,10.0235,2117.2,2116.0,3.54328]
[1625164387557,10.0235,2117.2,2116.0,8.55328]
[1625164387662,20.0,2117.3,2116.0,8.55328]
[1625164387810,25.016,2117.4,2116.6,11.93429]
[1625164387911,14.6144,2117.4,2116.6,11.93429]
[1625164388008,19.6244,2117.4,2116.6,11.93429]
[1625164388109,0.16,2117.3,2116.6,11.93429]
[1625164388360,0.16,2117.3,2116.6,9.13730706]
[1625164388510,9.01,2117.4,2116.6,9.13730706]
[1625164388758,5.01,2117.4,2116.6,9.13730706]
[1625164388909,20.0,2117.0,2116.6,9.13730706]
[1625164389014,20.0,2117.0,2116.6,4.8483]
[1625164389114,20.0,2117.0,2116.1,9.44779]
[1625164389309,0.14,2116.9,2116.1,9.44779]
[1625164389411,2.62320987,2116.9,2116.1,9.44779]
[1625164389667,2.62320987,2116.9,2115.6,5.01]
[1625164389768,2.48320987,2116.9,2115.8,14.46074]
[1625164390061,2.48320987,2116.9,2116.1,7.08743]
[1625164390621,4.0,2117.0,2116.1,7.08743]
[1625164390715,4.0,2117.0,2116.1,12.09743]
[1625164390816,10.3319,2117.5,2116.2,0.06]
[1625164391219,11.0813,2117.8,2116.8,11.65487]
[1625164391367,10.1528,2118.0,2116.8,11.65487]
[1625164391473,10.1528,2118.0,2116.8,16.66487]
[1625164391665,10.1028,2118.0,2116.8,16.66487]
[1625164391870,47.034,2118.2,2116.8,16.66487]
[1625164391871,27.9502,2118.2,2116.8,16.66487]
[1625164391971,23.0915,2118.2,2116.8,16.66487]
[1625164392320,6.179,2118.2,2116.8,16.66487]
[1625164392572,4.0,2118.5,2116.8,16.66487]
[1625164392670,5.01,2118.4,2116.8,16.66487]
[1625164392768,44.28413391,2118.7,2116.8,24.66487]
[1625164392914,42.13613391,2118.7,2116.8,17.531]
[1625164393117,20.0,2118.5,2116.8,9.581]
[1625164393316,0.1,2118.4,2117.0,9.44304]
[1625164393566,0.1,2118.4,2117.0,14.45304]
[1625164393663,4.4791591,2118.4,2117.0,9.44304]
[1625164393867,8.4791591,2118.4,2117.0,9.44304]
[1625164393966,20.0,2118.0,2117.0,9.44304]
[1625164394166,25.01,2118.0,2116.7,9.44516]
[1625164394514,32.09357,2118.0,2116.8,7.08359]
[1625164395250,32.09357,2118.0,2116.8,12.09359]
[1625164395451,12.09357,2118.0,2116.8,12.09359]
[1625164395703,5.01,2118.0,2116.8,5.01]
[1625164395906,13.01,2118.2,2116.7,9.44516]
[1625164396005,20.0,2117.9,2116.7,14.45516]
[1625164396355,25.01,2117.9,2116.7,14.45516]
[1625164397107,25.01,2117.9,2116.7,9.44516]
[1625164397427,7.0844,2117.7,2116.7,9.44516]
[1625164398326,7.0844,2117.7,2116.7,14.45516]
[1625164398426,18.059,2117.9,2116.7,14.45516]
[1625164398530,25.14289,2117.9,2116.7,14.45516]
[1625164398979,33.14289,2117.9,2116.7,9.44516]
[1625164399081,15.0,2117.8,2116.6,1.5708]
[1625164399182,15.15,2117.8,2116.4,9.44516]
[1625164399283,0.06,2117.7,2116.4,9.44516]
[1625164399482,13.16,2117.8,2116.3,11.0091]
[1625164399658,7.08463,2117.7,2116.6,7.08463]
[1625164399758,20.0,2117.6,2116.6,7.08463]
[1625164399860,20.0,2117.5,2116.4,9.44516]
[1625164400110,33.01,2117.5,2116.3,11.0091]
[1625164400409,33.01,2117.5,2115.9,14.41968]
[1625164400410,13.01,2117.5,2115.9,10.8772]